lending/lending_fUSD_20240401
["ID","MTS","AMOUNT","RATE_DAILY","PERIOD"]
[321217656,1711986646396,-170.8,0.000564,8]
[321217657,1711986646406,-170.8,0.000564,8]
[321217658,1711986646415,-170.8,0.000564,8]
[321217659,1711986646425,-170.8,0.000564,8]
[321217660,1711986646435,-170.8,0.000564,8]
[321217661,1711986646444,-170.8,0.000564,8]
[321217662,1711986646453,-170.8,0.000564,8]
[321217663,1711986646463,-170.8,0.000564,8]
[321217664,1711986646473,-170.8,0.000564,8]
[321217665,1711986646483,-170.8,0.000564,8]
[321217666,1711986646492,-500.0,0.00056438,120]
[321217667,1711986646502,-500.0,0.00056438,120]
[321217668,1711986646511,-541.85,0.00056438,120]
[321217669,1711986646521,-829.0,0.00056438,120]
[321217670,1711986646530,-500.0,0.00056438,120]
[321217671,1711986646539,-576.37,0.00056438,120]
[321217672,1711986646550,-580.29,0.00056438,120]
[321217673,1711986646560,-500.0,0.00056438,120]
[321217674,1711986646569,-579.08,0.00056438,120]
[321217675,1711986646579,-500.0,0.00056438,120]
[321217676,1711986646588,-500.0,0.00056438,120]
[321217677,1711986646599,-311.05,0.00056438,120]
[321217678,1711986646609,-500.0,0.00056438,120]
[321217679,1711986646618,-500.0,0.00056438,120]
[321217680,1711986646627,-500.0,0.00056438,120]
[321217681,1711986646636,-500.0,0.00056438,120]
[321217682,1711986646645,-500.0,0.00056438,120]
[321217683,1711986646654,-500.0,0.00056438,120]
[321217684,1711986646664,-500.0,0.00056438,120]
[321217685,1711986646673,-500.0,0.00056438,120]
[321217686,1711986646682,-500.0,0.00056438,120]
[321217687,1711986646691,-500.0,0.00056438,120]
[321217688,1711986646701,-500.0,0.00056438,120]
[321217689,1711986646710,-500.0,0.00056438,120]
[321217690,1711986646719,-500.0,0.00056438,120]
[321217691,1711986646728,-500.0,0.00056438,120]
[321217692,1711986646737,-500.0,0.00056438,120]
[321217693,1711986646746,-758.31,0.00056438,120]
[321217694,1711986646755,-500.0,0.00056438,120]
[321217695,1711986646765,-500.0,0.00056438,120]
[321217696,1711986646774,-174.19312624,0.00056438,120]
[321217697,1711986646784,-886.07,0.00056438,120]
[321217698,1711986646793,-582.95,0.00056438,120]
[321217699,1711986646802,-500.0,0.00056438,120]
[321217700,1711986646811,-607.24,0.00056438,120]
[321217701,1711986646821,-500.0,0.00056438,120]
[321217702,1711986646830,-500.0,0.00056438,120]
[321217704,1711986646839,-621.45,0.00056438,120]
[321217705,1711986646850,-500.0,0.00056438,120]
[321217707,1711986646859,-1939.56,0.00056438,120]
[321217709,1711986646868,-500.0,0.00056438,120]
[321217711,1711986646877,-500.0,0.00056438,120]
[321217713,1711986646887,-500.0,0.00056438,120]
[321217715,1711986646897,-1528.4,0.00056438,120]
[321217717,1711986646906,-1096.06,0.00056438,120]
[321217719,1711986646915,-536.31,0.00056438,120]
[321217721,1711986646924,-500.0,0.00056438,120]
[321217723,1711986646933,-500.0,0.00056438,120]
[321217725,1711986646942,-500.0,0.00056438,120]
[321217727,1711986646952,-500.0,0.00056438,120]
[321217729,1711986646962,-500.0,0.00056438,120]
[321217731,1711986646971,-500.0,0.00056438,21]
[321217733,1711986646981,-500.0,0.00056438,120]
[321217735,1711986646990,-500.0,0.00056438,120]
[321217737,1711986647001,-500.0,0.00056438,120]
[321217739,1711986647010,-500.0,0.00056438,120]
[321217741,1711986647019,-500.0,0.00056438,120]
[321217743,1711986647029,-500.0,0.00056438,120]
[321217745,1711986647038,-153.32,0.00056445,120]
[321217747,1711986647047,-156.97874248,0.00056448,120]
[321217749,1711986647056,-255.52283612,0.00056612,2]
[321217751,1711986647066,-687.56234955,0.00056636,120]
[321217753,1711986647077,-500.0,0.00056712,120]
[321217755,1711986647086,-500.0,0.00056712,120]
[321217757,1711986647095,-541.85,0.00056712,120]
[321217759,1711986647104,-829.0,0.00056712,120]
[321217761,1711986647114,-500.0,0.00056712,120]
[321217763,1711986647122,-576.37,0.00056712,120]
[321217768,1711986647162,-580.29,0.00056712,120]
[321217770,1711986647171,-500.0,0.00056712,120]
[321217771,1711986647180,-579.08,0.00056712,120]
[321217772,1711986647189,-500.0,0.00056712,120]
[321217773,1711986647199,-500.0,0.00056712,120]
[321217774,1711986647209,-500.0,0.00056712,120]
[321217775,1711986647218,-500.0,0.00056712,120]
[321217776,1711986647227,-500.0,0.00056712,120]
[321217777,1711986647236,-500.0,0.00056712,120]
[321217778,1711986647245,-500.0,0.00056712,120]
[321217779,1711986647255,-500.0,0.00056712,120]
[321217780,1711986647264,-500.0,0.00056712,120]
[321217781,1711986647273,-500.0,0.00056712,120]
[321217782,1711986647283,-500.0,0.00056712,120]
[321217783,1711986647292,-500.0,0.00056712,120]
[321217784,1711986647300,-500.0,0.00056712,120]
[321217785,1711986647309,-500.0,0.00056712,120]
[321217786,1711986647323,-500.0,0.00056712,120]
[321217787,1711986647332,-500.0,0.00056712,120]
[321217788,1711986647341,-500.0,0.00056712,120]
[321217789,1711986647352,-758.31,0.00056712,120]
[321217790,1711986647362,-500.0,0.00056712,120]
[321217791,1711986647372,-246.29,0.00056712,120]
[321217792,1711986647381,-886.07,0.00056712,120]
[321217793,1711986647390,-582.95,0.00056712,120]
[321217794,1711986647399,-500.0,0.00056712,120]
[321217795,1711986647409,-607.24,0.00056712,120]
[321217796,1711986647418,-500.0,0.00056712,120]
[321217797,1711986647428,-500.0,0.00056712,120]
[321217798,1711986647439,-621.45,0.00056712,120]
[321217799,1711986647451,-500.0,0.00056712,120]
[321217800,1711986647462,-1939.56,0.00056712,120]
[321217801,1711986647475,-500.0,0.00056712,120]
[321217802,1711986647484,-500.0,0.00056712,120]
[321217803,1711986647494,-500.0,0.00056712,120]
[321217804,1711986647504,-1528.4,0.00056712,120]
[321217805,1711986647513,-1096.06,0.00056712,120]
[321217806,1711986647522,-500.0,0.00056712,120]
[321217807,1711986647531,-312.53,0.00056712,120]
[321217808,1711986647540,-500.0,0.00056712,120]
[321217809,1711986647550,-500.0,0.00056712,120]
[321217810,1711986647559,-500.0,0.00056712,120]
[321217811,1711986647568,-500.0,0.00056712,21]
[321217812,1711986647577,-500.0,0.00056712,120]
[321217813,1711986647587,-500.0,0.00056712,120]
[321217814,1711986647596,-500.0,0.00056712,120]
[321217815,1711986647606,-500.0,0.00056712,120]
[321217816,1711986647615,-500.0,0.00056712,120]
[321217817,1711986647624,-500.0,0.00056712,120]
[321217818,1711986647633,-544.0,0.00056713,120]
[321217819,1711986647641,-574.0,0.00056713,120]
[321217820,1711986647650,-576.0,0.00056713,120]
[321217821,1711986647659,-152.0,0.00056942,3]
[321217822,1711986647669,-500.0,0.00056986,120]
[321217823,1711986647678,-500.0,0.00056986,120]
[321217824,1711986647687,-541.85,0.00056986,120]
[321217825,1711986647696,-829.0,0.00056986,120]
[321217826,1711986647705,-507.93308833,0.00056986,120]
[321217827,1711986647714,-576.37,0.00056986,120]
[321217828,1711986647724,-580.29,0.00056986,120]
[321217829,1711986647733,-500.0,0.00056986,120]
[321217830,1711986647742,-579.08,0.00056986,120]
[321217831,1711986647751,-500.0,0.00056986,120]
[321217832,1711986647760,-500.0,0.00056986,120]
[321217833,1711986647769,-500.0,0.00056986,120]
[321217834,1711986647779,-500.0,0.00056986,120]
[321217835,1711986647788,-500.0,0.00056986,120]
[321217836,1711986647798,-500.0,0.00056986,120]
[321217837,1711986647807,-500.0,0.00056986,120]
[321217838,1711986647817,-500.0,0.00056986,120]
[321217839,1711986647826,-566.26,0.00056986,120]
[321217840,1711986647836,-500.0,0.00056986,120]
[321217841,1711986647845,-500.0,0.00056986,120]
[321217842,1711986647855,-500.0,0.00056986,120]
[321217843,1711986647864,-500.0,0.00056986,120]
[321217844,1711986647873,-500.0,0.00056986,120]
[321217845,1711986647882,-500.0,0.00056986,120]
[321217846,1711986647892,-500.0,0.00056986,120]
[321217847,1711986647901,-500.0,0.00056986,120]
[321217848,1711986647910,-758.31,0.00056986,120]
[321217849,1711986647920,-500.0,0.00056986,120]
[321217850,1711986647929,-886.07,0.00056986,120]
[321217851,1711986647938,-582.95,0.00056986,120]
[321217852,1711986647947,-500.0,0.00056986,120]
[321217853,1711986647956,-607.24,0.00056986,120]
[321217854,1711986647965,-500.0,0.00056986,120]
[321217855,1711986647975,-500.0,0.00056986,120]
[321217856,1711986647984,-621.45,0.00056986,120]
[321217857,1711986647993,-500.0,0.00056986,120]
[321217858,1711986648002,-1939.56,0.00056986,120]
[321217859,1711986648011,-500.0,0.00056986,120]
[321217860,1711986648020,-500.0,0.00056986,120]
[321217861,1711986648029,-500.0,0.00056986,120]
[321217862,1711986648038,-1528.4,0.00056986,120]
[321217863,1711986648047,-1096.06,0.00056986,120]
[321217864,1711986648057,-500.0,0.00056986,120]
[321217865,1711986648067,-500.0,0.00056986,120]
[321217866,1711986648077,-500.0,0.00056986,120]
[321217867,1711986648086,-500.0,0.00056986,120]
[321217868,1711986648098,-500.0,0.00056986,21]
[321217869,1711986648107,-178.75590753,0.00056986,120]
[321217870,1711986648120,-500.0,0.00056986,120]
[321217871,1711986648130,-500.0,0.00056986,120]
[321217872,1711986648141,-500.0,0.00056986,120]
[321217873,1711986648151,-500.0,0.00056986,120]
[321217874,1711986648160,-500.0,0.00056986,120]
[321217875,1711986648170,-3039.0,0.00057,117]
[321217876,1711986648180,-463.17,0.0005712,2]
[321217877,1711986648191,-544.0,0.00057124,120]
[321217878,1711986648201,-575.0,0.00057124,120]
[321217879,1711986648213,-576.0,0.00057124,120]
[321217880,1711986648223,-154.51561327,0.00057189,120]
[321217881,1711986648233,-500.0,0.0005726,120]
[321217882,1711986648243,-521.01,0.0005726,120]
[321217883,1711986648254,-541.85,0.0005726,120]
[321217884,1711986648265,-829.0,0.0005726,120]
[321217885,1711986648275,-576.37,0.0005726,120]
[321217886,1711986648284,-580.29,0.0005726,120]
[321217887,1711986648293,-500.0,0.0005726,120]
[321217888,1711986648302,-579.08,0.0005726,120]
[321217889,1711986648312,-500.0,0.0005726,120]
[321217890,1711986648322,-500.0,0.0005726,120]
[321217891,1711986648334,-500.0,0.0005726,120]
[321217892,1711986648346,-500.0,0.0005726,120]
[321217893,1711986648357,-500.0,0.0005726,120]
[321217894,1711986648367,-500.0,0.0005726,120]
[321217895,1711986648377,-500.0,0.0005726,120]
[321217896,1711986648389,-500.0,0.0005726,120]
[321217897,1711986648399,-500.0,0.0005726,120]
[321217898,1711986648409,-500.0,0.0005726,120]
[321217899,1711986648421,-500.0,0.0005726,120]
[321217900,1711986648440,-500.0,0.0005726,120]
[321217901,1711986648450,-500.0,0.0005726,120]
[321217902,1711986648459,-500.0,0.0005726,120]
[321217903,1711986648469,-395.09141911,0.0005726,120]
[321217904,1711986648478,-500.0,0.0005726,120]
[321217905,1711986648487,-758.31,0.0005726,120]
[321217906,1711986648497,-500.0,0.0005726,120]
[321217907,1711986648506,-886.07,0.0005726,120]
[321217908,1711986648515,-582.95,0.0005726,120]
[321217909,1711986648524,-500.0,0.0005726,120]
[321217910,1711986648533,-607.24,0.0005726,120]
[321217911,1711986648543,-500.0,0.0005726,120]
[321217912,1711986648553,-500.0,0.0005726,120]
[321217913,1711986648562,-621.45,0.0005726,120]
[321217914,1711986648572,-500.0,0.0005726,120]
[321217915,1711986648581,-1939.56,0.0005726,120]
[321217916,1711986648590,-500.0,0.0005726,120]
[321217917,1711986648600,-500.0,0.0005726,120]
[321217918,1711986648610,-500.0,0.0005726,120]
[321217919,1711986648621,-1528.4,0.0005726,120]
[321217920,1711986648630,-1096.06,0.0005726,120]
[321217921,1711986648639,-500.0,0.0005726,120]
[321217922,1711986648649,-401.47,0.0005726,120]
[321217923,1711986648658,-500.0,0.0005726,120]
[321217924,1711986648667,-500.0,0.0005726,120]
[321217925,1711986648676,-500.0,0.0005726,21]
[321217926,1711986648687,-500.0,0.0005726,120]
[321217927,1711986648697,-500.0,0.0005726,120]
[321217928,1711986648708,-500.0,0.0005726,120]
[321217929,1711986648717,-540.63,0.0005726,120]
[321217930,1711986648727,-500.0,0.0005726,120]
[321217931,1711986648736,-4074.06878696,0.00057278,2]
[321217932,1711986648747,-151.0,0.00057288,120]
[321217933,1711986648756,-150.0,0.000573,13]
[321217934,1711986648765,-500.0,0.00057378,120]
[321217935,1711986648775,-158.31471238,0.0005738,120]
[321217936,1711986648786,-151.0,0.00057425,120]
[321217937,1711986648796,-500.0,0.00057534,120]
[321217938,1711986648805,-541.85,0.00057534,120]
[321217939,1711986648815,-829.0,0.00057534,120]
[321217940,1711986648825,-576.37,0.00057534,120]
[321217941,1711986648834,-580.29,0.00057534,120]
[321217942,1711986648845,-500.0,0.00057534,120]
[321217943,1711986648857,-579.08,0.00057534,120]
[321217944,1711986648869,-500.0,0.00057534,120]
[321217945,1711986648879,-500.0,0.00057534,120]
[321217946,1711986648889,-500.0,0.00057534,120]
[321217947,1711986648902,-500.0,0.00057534,120]
[321217948,1711986648911,-500.0,0.00057534,120]
[321217949,1711986648922,-500.0,0.00057534,120]
[321217950,1711986648932,-500.0,0.00057534,120]
[321217951,1711986648942,-500.0,0.00057534,120]
[321217952,1711986648953,-500.0,0.00057534,120]
[321217953,1711986648963,-500.0,0.00057534,120]
[321217954,1711986648974,-500.0,0.00057534,120]
[321217955,1711986648985,-500.0,0.00057534,120]
[321217956,1711986648995,-500.0,0.00057534,120]
[321217957,1711986649005,-500.0,0.00057534,120]
[321217958,1711986649017,-500.0,0.00057534,120]
[321217959,1711986649029,-758.31,0.00057534,120]
[321217960,1711986649039,-500.0,0.00057534,120]
[321217961,1711986649050,-886.07,0.00057534,120]
[321217962,1711986649060,-582.95,0.00057534,120]
[321217963,1711986649070,-500.0,0.00057534,120]
[321217964,1711986649080,-607.24,0.00057534,120]
[321217965,1711986649091,-500.0,0.00057534,120]
[321217966,1711986649101,-500.0,0.00057534,120]
[321217967,1711986649112,-621.45,0.00057534,120]
[321217968,1711986649123,-500.0,0.00057534,120]
[321217969,1711986649133,-1939.56,0.00057534,120]
[321217970,1711986649144,-500.0,0.00057534,120]
[321217971,1711986649154,-500.0,0.00057534,120]
[321217972,1711986649164,-500.0,0.00057534,120]
[321217973,1711986649174,-1528.4,0.00057534,120]
[321217974,1711986649185,-1096.06,0.00057534,120]
[321217975,1711986649194,-500.0,0.00057534,120]
[321217976,1711986649204,-403.58,0.00057534,120]
[321217977,1711986649213,-500.0,0.00057534,120]
[321217978,1711986649223,-500.0,0.00057534,21]
[321217979,1711986649233,-500.0,0.00057534,120]
[321217980,1711986649242,-500.0,0.00057534,120]
[321217981,1711986649253,-500.0,0.00057534,120]
[321217982,1711986649264,-500.0,0.00057534,120]
[321217983,1711986649274,-153.21937786,0.0005763,120]
[321217984,1711986649284,-157.33619366,0.00057646,14]
[321217985,1711986649297,-155.05288457,0.00057649,120]
[321217986,1711986649307,-154.51561327,0.00057651,120]
[321217987,1711986649320,-155.26455129,0.00057793,120]
[321217988,1711986649332,-150.0,0.000578,13]
[321217989,1711986649341,-156.97874248,0.000578,120]
[321217990,1711986649351,-500.0,0.00057808,120]
[321217991,1711986649362,-541.85,0.00057808,120]
[321217992,1711986649371,-829.0,0.00057808,120]
[321217993,1711986649380,-576.37,0.00057808,120]
[321217994,1711986649390,-580.29,0.00057808,120]
[321217995,1711986649400,-500.0,0.00057808,120]
[321217996,1711986649410,-579.08,0.00057808,120]
[321217997,1711986649420,-500.0,0.00057808,120]
[321217998,1711986649429,-500.0,0.00057808,120]
[321217999,1711986649439,-194.0,0.00057808,120]
[321218000,1711986649450,-500.0,0.00057808,120]
[321218001,1711986649460,-500.0,0.00057808,120]
[321218002,1711986649470,-500.0,0.00057808,120]
[321218003,1711986649483,-500.0,0.00057808,120]
[321218004,1711986649494,-500.0,0.00057808,120]
[321218005,1711986649504,-500.0,0.00057808,120]
[321218006,1711986649514,-500.0,0.00057808,120]
[321218007,1711986649524,-500.0,0.00057808,120]
[321218008,1711986649534,-500.0,0.00057808,120]
[321218009,1711986649544,-500.0,0.00057808,120]
[321218010,1711986649554,-500.0,0.00057808,120]
[321218011,1711986649564,-232.86,0.00057808,120]
[321218012,1711986649573,-758.31,0.00057808,120]
[321218013,1711986649583,-500.0,0.00057808,120]
[321218014,1711986649593,-886.07,0.00057808,120]
[321218015,1711986649604,-582.95,0.00057808,120]
[321218016,1711986649613,-500.0,0.00057808,120]
[321218017,1711986649623,-607.24,0.00057808,120]
[321218018,1711986649633,-182.3962913,0.00057808,120]
[321218019,1711986649644,-500.0,0.00057808,120]
[321218020,1711986649655,-621.45,0.00057808,120]
[321218021,1711986649665,-500.0,0.00057808,120]
[321218022,1711986649674,-1939.56,0.00057808,120]
[321218023,1711986649685,-500.0,0.00057808,120]
[321218024,1711986649695,-500.0,0.00057808,120]
[321218025,1711986649705,-500.0,0.00057808,120]
[321218026,1711986649716,-1528.4,0.00057808,120]
[321218027,1711986649726,-1096.06,0.00057808,120]
[321218028,1711986649735,-349.96,0.00057808,120]
[321218029,1711986649745,-500.0,0.00057808,120]
[321218030,1711986649755,-500.0,0.00057808,21]
[321218031,1711986649766,-500.0,0.00057808,120]
[321218032,1711986649776,-500.0,0.00057808,120]
[321218033,1711986649786,-500.0,0.00057808,120]
[321218034,1711986649797,-155.7454303,0.0005798,120]
[321218035,1711986649808,-500.0,0.00058,45]
[321218036,1711986649818,-158.82267,0.00058082,120]
[321218037,1711986649828,-541.85,0.00058082,120]
[321218038,1711986649838,-829.0,0.00058082,120]
[321218039,1711986649849,-576.37,0.00058082,120]
[321218040,1711986649858,-580.29,0.00058082,120]
[321218041,1711986649868,-579.08,0.00058082,120]
[321218042,1711986649878,-500.0,0.00058082,120]
[321218043,1711986649889,-500.0,0.00058082,120]
[321218044,1711986649898,-203.37527704,0.00058082,120]
[321218045,1711986649909,-500.0,0.00058082,120]
[321218046,1711986649919,-500.0,0.00058082,120]
[321218047,1711986649929,-500.0,0.00058082,120]
[321218048,1711986649940,-500.0,0.00058082,120]
[321218049,1711986649950,-500.0,0.00058082,120]
[321218050,1711986649960,-500.0,0.00058082,120]
[321218051,1711986649971,-500.0,0.00058082,120]
[321218052,1711986649981,-500.0,0.00058082,120]
[321218053,1711986649992,-500.0,0.00058082,120]
[321218054,1711986650001,-758.31,0.00058082,120]
[321218055,1711986650011,-500.0,0.00058082,120]
[321218056,1711986650021,-886.07,0.00058082,120]
[321218057,1711986650031,-582.95,0.00058082,120]
[321218058,1711986650041,-500.0,0.00058082,120]
[321218059,1711986650051,-607.24,0.00058082,120]
[321218060,1711986650062,-500.0,0.00058082,120]
[321218061,1711986650072,-621.45,0.00058082,120]
[321218062,1711986650082,-500.0,0.00058082,120]
[321218063,1711986650092,-1939.56,0.00058082,120]
[321218064,1711986650104,-500.0,0.00058082,120]
[321218065,1711986650113,-500.0,0.00058082,120]
[321218066,1711986650123,-500.0,0.00058082,120]
[321218067,1711986650134,-1528.4,0.00058082,120]
[321218068,1711986650144,-1096.06,0.00058082,120]
[321218069,1711986650155,-500.0,0.00058082,120]
[321218070,1711986650165,-620.64,0.00058082,21]
[321218071,1711986650175,-500.0,0.00058082,120]
[321218072,1711986650184,-500.0,0.00058082,120]
[321218073,1711986650194,-962.0,0.00058127,120]
[321218074,1711986650203,-458.0,0.00058127,120]
[321218075,1711986650213,-2160.718,0.00058127,120]
[321218076,1711986650223,-237.9,0.00058127,120]
[321218077,1711986650233,-538.0,0.00058127,120]
[321218078,1711986650242,-150.718,0.00058127,120]
[321218079,1711986650253,-211.0,0.00058127,120]
[321218080,1711986650262,-1463.0,0.00058127,120]
[321218081,1711986650272,-1178.0,0.00058127,120]
[321218082,1711986650282,-683.327,0.00058127,120]
[321218083,1711986650292,-151.546,0.00058127,120]
[321218084,1711986650302,-150.0,0.00058127,2]
[321218085,1711986650311,-155.05288457,0.00058139,120]
[321218086,1711986650325,-150.0,0.000583,13]
[321218087,1711986650335,-541.85,0.00058356,120]
[321218088,1711986650344,-829.0,0.00058356,120]
[321218089,1711986650355,-576.37,0.00058356,120]
[321218090,1711986650366,-580.29,0.00058356,120]
[321218091,1711986650377,-579.08,0.00058356,120]
[321218092,1711986650387,-500.0,0.00058356,120]
[321218093,1711986650398,-500.0,0.00058356,120]
[321218094,1711986650408,-500.0,0.00058356,120]
[321218095,1711986650417,-500.0,0.00058356,120]
[321218096,1711986650427,-500.0,0.00058356,120]
[321218097,1711986650437,-500.0,0.00058356,120]
[321218098,1711986650446,-758.31,0.00058356,120]
[321218099,1711986650456,-886.07,0.00058356,120]
[321218100,1711986650465,-582.95,0.00058356,120]
[321218101,1711986650474,-500.0,0.00058356,120]
[321218102,1711986650484,-607.24,0.00058356,120]
[321218103,1711986650494,-500.0,0.00058356,120]
[321218104,1711986650504,-621.45,0.00058356,120]
[321218105,1711986650515,-1939.56,0.00058356,120]
[321218106,1711986650525,-500.0,0.00058356,120]
[321218107,1711986650535,-500.0,0.00058356,120]
[321218108,1711986650546,-1528.4,0.00058356,120]
[321218109,1711986650556,-1096.06,0.00058356,120]
[321218110,1711986650566,-500.0,0.00058356,120]
[321218111,1711986650576,-500.0,0.00058356,120]
[321218112,1711986650586,-269.27,0.00058356,120]
[321218113,1711986650596,-552.0,0.000584,9]
[321218114,1711986650607,-158.31471238,0.00058446,120]
[321218115,1711986650617,-197.27,0.00058499,120]
[321218116,1711986650627,-151.0,0.00058603,120]
[321218117,1711986650637,-541.85,0.0005863,120]
[321218118,1711986650647,-829.0,0.0005863,120]
[321218119,1711986650657,-576.37,0.0005863,120]
[321218120,1711986650667,-580.29,0.0005863,120]
[321218121,1711986650677,-579.08,0.0005863,120]
[321218122,1711986650688,-500.0,0.0005863,120]
[321218123,1711986650699,-500.0,0.0005863,120]
[321218124,1711986650709,-500.0,0.0005863,120]
[321218125,1711986650720,-500.0,0.0005863,120]
[321218126,1711986650730,-500.0,0.0005863,120]
[321218127,1711986650739,-500.0,0.0005863,120]
[321218128,1711986650749,-758.31,0.0005863,120]
[321218129,1711986650759,-886.07,0.0005863,120]
[321218130,1711986650769,-582.95,0.0005863,120]
[321218131,1711986650779,-500.0,0.0005863,120]
[321218132,1711986650789,-607.24,0.0005863,120]
[321218133,1711986650799,-500.0,0.0005863,120]
[321218134,1711986650810,-621.45,0.0005863,120]
[321218135,1711986650820,-1939.56,0.0005863,120]
[321218136,1711986650830,-500.0,0.0005863,120]
[321218137,1711986650840,-421.96,0.0005863,120]
[321218138,1711986650851,-1528.4,0.0005863,120]
[321218139,1711986650861,-1096.06,0.0005863,120]
[321218140,1711986650870,-500.0,0.0005863,120]
[321218141,1711986650880,-500.0,0.0005863,120]
[321218142,1711986650890,-156.90909189,0.00058712,120]
[321218143,1711986650901,-170.8,0.000588,9]
[321218144,1711986650911,-170.8,0.000588,9]
[321218145,1711986650921,-170.8,0.000588,9]
[321218146,1711986650931,-170.8,0.000588,9]
[321218147,1711986650940,-170.8,0.000588,9]
[321218148,1711986650951,-170.8,0.000588,9]
[321218149,1711986650961,-170.8,0.000588,9]
[321218150,1711986650971,-170.8,0.000588,9]
[321218151,1711986650982,-170.8,0.000588,9]
[321218152,1711986651136,-170.8,0.000588,9]
[321218153,1711986651147,-170.8,0.000588,9]
[321218154,1711986651156,-170.8,0.000588,9]
[321218155,1711986651166,-170.8,0.000588,9]
[321218156,1711986651176,-170.8,0.000588,9]
[321218157,1711986651185,-170.8,0.000588,9]
[321218158,1711986651194,-170.8,0.000588,9]
[321218159,1711986651204,-170.8,0.000588,9]
[321218160,1711986651213,-170.8,0.000588,9]
[321218161,1711986651223,-170.8,0.000588,9]
[321218162,1711986651233,-170.8,0.000588,9]
[321218163,1711986651242,-150.0,0.000588,13]
[321218164,1711986651251,-1833.68,0.00058813,120]
[321218165,1711986651261,-1410.51,0.00058827,120]
[321218166,1711986651270,-158.31471238,0.00058885,120]
[321218167,1711986651279,-288.92052142,0.00058902,2]
[321218168,1711986651289,-1253.03880451,0.00058902,4]
[321218169,1711986651298,-262.796578,0.00058902,4]
[321218170,1711986651307,-4125.6485,0.00058902,4]
[321218171,1711986651317,-258.71451783,0.00058902,4]
[321218172,1711986651326,-541.85,0.00058904,120]
[321218173,1711986651338,-829.0,0.00058904,120]
[321218174,1711986651347,-576.37,0.00058904,120]
[321218175,1711986651359,-580.29,0.00058904,120]
[321218176,1711986651370,-579.08,0.00058904,120]
[321218177,1711986651379,-500.0,0.00058904,120]
[321218178,1711986651389,-500.0,0.00058904,120]
[321218179,1711986651398,-500.0,0.00058904,120]
[321218180,1711986651408,-500.0,0.00058904,120]
[321218181,1711986651417,-571.7,0.00058904,120]
[321218182,1711986651427,-758.31,0.00058904,120]
[321218183,1711986651437,-886.07,0.00058904,120]
[321218184,1711986651446,-582.95,0.00058904,120]
[321218185,1711986651456,-500.0,0.00058904,120]
[321218186,1711986651466,-607.24,0.00058904,120]
[321218187,1711986651475,-500.0,0.00058904,120]
[321218188,1711986651485,-621.45,0.00058904,120]
[321218189,1711986651494,-1939.56,0.00058904,120]
[321218190,1711986651504,-500.0,0.00058904,120]